fUST/lending_fUST_20240804
["ID","MTS","AMOUNT","RATE_DAILY","PERIOD"]
[334069554,1722721630023,-413.80608461,9.999e-05,2]
[334069555,1722721630047,-189.7619022,9.999e-05,2]
[334069556,1722721636137,-20.03000346,9.999e-05,2]
[334069557,1722721636160,-347.96,0.00010959,2]
[334069558,1722721636181,-289.97,0.00010959,2]
[334069559,1722721636202,-241.64,0.00010959,2]
[334069560,1722721636225,-250.0,0.00011285,2]
[334069561,1722721636248,-250.0,0.00011316,2]
[334069562,1722721636272,-250.0,0.00011347,2]
[334069563,1722721636294,-250.0,0.00011378,2]
[334069564,1722721636316,-250.0,0.00011409,2]
[334069565,1722721636338,-250.0,0.0001144,2]
[334069566,1722721636359,-250.0,0.00011471,2]
[334069567,1722721636380,-300.0,0.0001148,2]
[334069568,1722721636402,-118.65976096,0.00011481,2]
[334069569,1722721644519,-273.37336231,9.9e-05,2]
[334069570,1722721651094,-201.37,0.00010959,2]
[334069571,1722721651117,-7441.43991883,0.00011481,2]
[334069572,1722721651942,-273.37336231,9.9e-05,2]
[334069573,1722721655483,-1630.09009769,0.0001,2]
[334069574,1722721697770,-174.37281606,0.0001,2]
[334069575,1722721729239,-154.72922386,0.0001,2]
[334069576,1722721729264,-1085.28912334,0.0001,2]
[334069577,1722721730607,-154.72922386,0.0001,2]
[334069578,1722721732511,-154.72922386,0.0001,2]
[334069579,1722721760899,-1078.39151176,0.0001,2]
[334069619,1722721834184,-317.23876435,0.0001,2]
[334069620,1722721834193,-167.81,0.00010959,2]
[334069621,1722721834203,-839.05,0.00010959,2]
[334069622,1722721834213,-1529.68659723,0.00011481,2]
[334069630,1722721834379,-418.89313081,0.00011481,2]
[334069669,1722721839176,-5858.62575125,0.00011481,2]
[334069674,1722721839238,-1259.41545977,0.00011481,2]
[334069676,1722721839252,-8273.27938115,0.00011481,2]
[334069678,1722721839261,-250.0,0.00011501,2]
[334069679,1722721839271,-250.0,0.00011532,2]
[334069680,1722721839281,-250.0,0.00011563,2]
[334069682,1722721839290,-250.0,0.00011594,2]
[334069683,1722721839301,-250.0,0.00011625,2]
[334069684,1722721839312,-250.0,0.00011656,2]
[334069685,1722721839321,-250.0,0.00011687,2]
[334069686,1722721839331,-250.0,0.00011718,2]
[334069687,1722721839341,-250.0,0.00011749,2]
[334069688,1722721839351,-250.0,0.0001178,2]
[334069689,1722721839360,-250.0,0.00011811,2]
[334069690,1722721839370,-250.0,0.00011842,2]
[334069691,1722721839380,-250.0,0.00011873,2]
[334069692,1722721839389,-44593.95471947,0.00012121,2]
[334069693,1722721839402,-2246.33085294,0.00012121,2]
[334069694,1722721839411,-190.4790651,0.000129,2]
[334069704,1722721840767,-3394.17339954,0.000129,2]
[334069705,1722721840777,-19.75792205,0.00012986,2]
[334069706,1722721840963,-147.29439795,0.00012986,2]
[334069707,1722721840973,-206.79520963,0.00013597,2]
[334069708,1722721840983,-422.920218,0.00013598,2]
[334069709,1722721840993,-193.94545662,0.00013673,2]
[334069710,1722721841002,-200.0,0.00013673,2]
[334069711,1722721841011,-4600.0436506,0.00013688,2]
[334069712,1722721841023,-518.80204498,0.00013688,2]
[334069713,1722721841035,-31338.72406942,0.00013688,2]
[334069714,1722721841045,-601.93,0.00013697,2]
[334069715,1722721841055,-601.93,0.00013697,2]
[334069716,1722721841067,-241.18881109,0.00013698,2]
[334069717,1722721841082,-500.0,0.00013698,2]
[334069718,1722721841095,-617.61400329,0.00013698,2]
[334069719,1722721841108,-500.0,0.00013698,2]
[334069720,1722721841121,-500.0,0.00013698,2]
[334069721,1722721841133,-500.0,0.00013698,2]
[334069722,1722721841143,-604.08,0.00013698,2]
[334069723,1722721841155,-500.0,0.00013698,2]
[334069724,1722721841167,-500.0,0.00013698,2]
[334069725,1722721841180,-500.0,0.00013698,2]
[334069726,1722721841192,-500.0,0.00013698,2]
[334069727,1722721841204,-555.67,0.00013698,2]
[334069728,1722721841217,-572.34,0.00013698,2]
[334069729,1722721841228,-204.06694146,0.00013698,2]
[334069730,1722721841241,-785.19,0.00013698,2]
[334069731,1722721841254,-500.0,0.00013698,2]
[334069732,1722721841268,-500.0,0.00013698,2]
[334069733,1722721841280,-500.0,0.00013698,2]
[334069734,1722721841292,-500.0,0.00013698,2]
[334069735,1722721841304,-500.0,0.00013698,2]
[334069736,1722721841316,-500.0,0.00013698,2]
[334069737,1722721841327,-500.0,0.00013698,2]
[334069738,1722721841340,-500.0,0.00013698,2]
[334069739,1722721841353,-500.0,0.00013698,2]
[334069740,1722721841365,-501.5405468,0.00013698,2]
[334069741,1722721841378,-500.0,0.00013698,2]
[334069742,1722721841389,-204.8390998,0.00013698,2]
[334069743,1722721841401,-500.0,0.00013698,2]
[334069744,1722721841412,-500.0,0.00013698,2]
[334069745,1722721841425,-500.0,0.00013698,2]
[334069746,1722721841436,-263.96081115,0.00013698,2]
[334069747,1722721841451,-500.0,0.00013698,2]
[334069748,1722721841465,-182.32442779,0.00013698,2]
[334069749,1722721841477,-500.0,0.00013698,2]
[334069750,1722721841489,-500.0,0.00013698,2]
[334069751,1722721841500,-500.0,0.00013698,2]
[334069752,1722721841514,-500.0,0.00013698,2]
[334069753,1722721841526,-500.0,0.00013698,2]
[334069754,1722721841539,-500.0,0.00013698,2]
[334069755,1722721841551,-500.0,0.00013698,2]
[334069756,1722721841562,-500.0,0.00013698,2]
[334069757,1722721841572,-500.0,0.00013698,2]
[334069758,1722721841583,-148.52320949,0.00013698,2]
[334069777,1722721844626,-351.47679051,0.00013698,2]
[334069778,1722721844637,-500.0,0.00013698,2]
[334069779,1722721844649,-421.84885917,0.00013698,2]
[334069780,1722721844661,-500.0,0.00013698,2]
[334069781,1722721844673,-500.0,0.00013698,2]
[334069782,1722721844685,-500.0,0.00013698,2]
[334069783,1722721844697,-500.0,0.00013698,2]
[334069784,1722721844708,-500.0,0.00013698,2]
[334069785,1722721844720,-501.88248023,0.00013698,2]
[334069786,1722721844735,-500.0,0.00013698,2]
[334069787,1722721844746,-522.3021497,0.00013698,2]
[334069788,1722721844757,-290.44659145,0.00013698,2]
[334069789,1722721844769,-707.76,0.00013698,2]
[334069790,1722721844780,-500.8979793,0.00013698,2]
[334069791,1722721844791,-500.0,0.00013698,2]
[334069793,1722721844803,-500.0,0.00013698,2]
[334069794,1722721844814,-500.0,0.00013698,2]
[334069795,1722721844825,-500.0,0.00013698,2]
[334069796,1722721844836,-522.2480063,0.00013698,2]
[334069797,1722721844847,-500.0,0.00013698,2]
[334069798,1722721844859,-150.0,0.00013698,2]
[334069799,1722721844870,-209.98036426,0.00013698,2]
[334069800,1722721844880,-500.0,0.00013698,2]
[334069801,1722721844892,-500.0,0.00013698,2]
[334069802,1722721844903,-500.0,0.00013698,2]
[334069803,1722721844913,-500.0,0.00013698,2]
[334069804,1722721844925,-500.0,0.00013698,2]
[334069805,1722721844935,-643.97,0.00013698,2]
[334069806,1722721844948,-500.0,0.00013698,2]
[334069807,1722721844958,-500.0,0.00013698,2]
[334069808,1722721844968,-247.91112171,0.00013698,2]
[334069809,1722721845099,-500.0,0.00013698,2]
[334069810,1722721845114,-500.0,0.00013698,2]
[334069811,1722721845123,-515.31335447,0.00013698,2]
[334069812,1722721845132,-500.0,0.00013698,2]
[334069813,1722721845142,-500.0,0.00013698,2]
[334069814,1722721845151,-503.19222684,0.00013698,2]
[334069815,1722721845160,-506.12596428,0.00013698,2]
[334069816,1722721845170,-583.4904351,0.00013698,2]
[334069817,1722721845179,-500.0,0.00013698,2]
[334069818,1722721845189,-500.0,0.00013698,2]
[334069819,1722721845199,-500.0,0.00013698,2]
[334069820,1722721845209,-673.85,0.00013698,2]
[334069821,1722721845219,-759.38,0.00013698,2]
[334069822,1722721845228,-500.0,0.00013698,2]
[334069823,1722721845237,-500.0,0.00013698,2]
[334069824,1722721845246,-500.0,0.00013698,2]
[334069825,1722721845255,-500.0,0.00013698,2]
[334069826,1722721845265,-500.0,0.00013698,2]
[334069827,1722721845275,-506.05667985,0.00013698,2]
[334069828,1722721845285,-500.0,0.00013698,2]
[334069829,1722721845294,-500.0,0.00013698,2]
[334069831,1722721845304,-710.77,0.00013698,2]
[334069832,1722721845313,-500.0,0.00013698,2]
[334069834,1722721845323,-500.0,0.00013698,2]
[334069835,1722721845332,-533.77528138,0.00013698,2]
[334069837,1722721845341,-500.0,0.00013698,2]
[334069839,1722721845352,-500.0,0.00013698,2]
[334069840,1722721845362,-500.0,0.00013698,2]
[334069841,1722721845372,-500.0,0.00013698,2]
[334069842,1722721845381,-497.17801363,0.00013698,2]
[334069843,1722721845391,-500.0,0.00013698,2]
[334069844,1722721845400,-500.0,0.00013698,2]
[334069845,1722721845409,-404.21286744,0.00013698,2]
[334069846,1722721845418,-500.0,0.00013698,2]
[334069847,1722721845428,-500.0,0.00013698,2]
[334069848,1722721845437,-431.15482086,0.00013698,2]
[334069849,1722721845448,-500.0,0.00013698,2]
[334069850,1722721845458,-500.0,0.00013698,2]
[334069851,1722721845469,-500.0,0.00013698,2]
[334069852,1722721845480,-500.0,0.00013698,2]
[334069853,1722721845490,-500.0,0.00013698,2]
[334069854,1722721845500,-500.0,0.00013698,2]
[334069855,1722721845509,-500.0,0.00013698,2]
[334069856,1722721845519,-500.0,0.00013698,2]
[334069857,1722721845528,-573.28,0.00013698,2]
[334069858,1722721845538,-500.0,0.00013698,2]
[334069859,1722721845547,-500.0,0.00013698,2]
[334069860,1722721845557,-500.0,0.00013698,2]
[334069861,1722721845566,-500.0,0.00013698,2]
[334069862,1722721845575,-500.0,0.00013698,2]
[334069863,1722721845585,-500.0,0.00013698,2]
[334069864,1722721845594,-500.0,0.00013698,2]
[334069865,1722721845603,-500.0,0.00013698,2]
[334069866,1722721845613,-500.0,0.00013698,2]
[334069867,1722721845622,-500.0,0.00013698,2]
[334069868,1722721845632,-500.0,0.00013698,2]
[334069869,1722721845642,-500.0,0.00013698,2]
[334069870,1722721845652,-500.0,0.00013698,2]
[334069871,1722721845662,-500.0,0.00013698,2]
[334069872,1722721845673,-500.0,0.00013698,2]
[334069873,1722721845683,-500.0,0.00013698,2]
[334069874,1722721845698,-172.87331293,0.00013698,2]
[334069875,1722721845707,-500.0,0.00013698,2]
[334069876,1722721845717,-502.45465813,0.00013698,2]
[334069877,1722721845731,-500.0,0.00013698,2]
[334069878,1722721845741,-2292.28,0.00013698,2]
[334069879,1722721845750,-2066.33,0.00013698,2]
[334069880,1722721845760,-500.0,0.00013698,2]
[334069881,1722721845770,-500.0,0.00013698,2]
[334069882,1722721845779,-500.0,0.00013698,2]
[334069883,1722721845789,-500.0,0.00013698,2]
[334069884,1722721845799,-500.0,0.00013698,2]
[334069886,1722721845808,-500.0,0.00013698,2]
[334069887,1722721845819,-500.0,0.00013698,2]
[334069888,1722721845828,-500.0,0.00013698,2]
[334069889,1722721845837,-684.39,0.00013698,2]
[334069890,1722721845846,-500.0,0.00013698,2]
[334069891,1722721845855,-500.0,0.00013698,2]
[334069892,1722721845865,-500.0,0.00013698,2]
[334069893,1722721845875,-500.0,0.00013698,2]
[334069894,1722721845884,-1061.03,0.00013698,2]
[334069895,1722721845894,-500.0,0.00013698,2]
[334069896,1722721845904,-500.0,0.00013698,2]
[334069897,1722721845913,-416.11006723,0.00013698,2]
[334069898,1722721845922,-500.0,0.00013698,2]
[334069899,1722721845931,-500.0,0.00013698,2]
[334069900,1722721845940,-500.0,0.00013698,2]
[334069901,1722721845951,-500.0,0.00013698,2]
[334069902,1722721845960,-501.66753155,0.00013698,2]
[334069903,1722721845970,-500.0,0.00013698,2]
[334069904,1722721845980,-500.0,0.00013698,2]
[334069905,1722721845989,-500.0,0.00013698,2]
[334069906,1722721845999,-500.0,0.00013698,2]
[334069907,1722721846009,-500.0,0.00013698,2]
[334069908,1722721846018,-504.14963923,0.00013698,2]
[334069909,1722721846027,-555.83,0.00013698,2]
[334069910,1722721846037,-500.0,0.00013698,2]
[334069911,1722721846046,-500.0,0.00013698,2]
[334069912,1722721846055,-500.0,0.00013698,2]
[334069913,1722721846065,-500.0,0.00013698,2]
[334069915,1722721846074,-1298.54,0.00013698,2]
[334069917,1722721846084,-500.0,0.00013698,2]
[334069919,1722721846093,-500.0,0.00013698,2]
[334069921,1722721846102,-503.01048796,0.00013698,2]
[334069923,1722721846112,-500.0,0.00013698,2]
[334069925,1722721846122,-500.0,0.00013698,2]
[334069927,1722721846132,-500.0,0.00013698,2]
[334069929,1722721846141,-500.0,0.00013698,2]
[334069931,1722721846150,-500.0,0.00013698,2]
[334069933,1722721846160,-500.0,0.00013698,2]
[334069936,1722721846170,-501.30856067,0.00013698,2]
[334069938,1722721846180,-1947.86,0.00013698,2]
[334069939,1722721846189,-500.0,0.00013698,2]
[334069941,1722721846201,-500.0,0.00013698,2]
[334069943,1722721846210,-500.0,0.00013698,2]
[334069945,1722721846219,-500.0,0.00013698,2]
[334069947,1722721846229,-593.79393504,0.00013698,2]
[334069949,1722721846239,-500.0,0.00013698,2]
[334069951,1722721846248,-500.0,0.00013698,2]
[334069953,1722721846257,-500.0,0.00013698,2]
[334069956,1722721846268,-500.0,0.00013698,2]
[334069957,1722721846278,-500.0,0.00013698,2]
[334069960,1722721846288,-500.0,0.00013698,2]
[334069962,1722721846298,-500.0,0.00013698,2]
[334069964,1722721846308,-500.0,0.00013698,2]
[334069967,1722721846317,-500.0,0.00013698,2]
[334069969,1722721846327,-500.0,0.00013698,2]
[334069971,1722721846337,-500.0,0.00013698,2]
[334069973,1722721846346,-500.0,0.00013698,2]
[334069975,1722721846356,-500.0,0.00013698,2]
[334069977,1722721846366,-500.0,0.00013698,2]
[334069979,1722721846375,-360.363229,0.00013699,2]
[334069981,1722721846384,-500.0,0.00013699,2]
[334069982,1722721846394,-500.0,0.00013699,2]
[334069985,1722721846404,-500.0,0.00013699,2]
[334069987,1722721846414,-500.0,0.00013699,2]
[334069989,1722721846424,-306.36299724,0.00013699,2]
[334069991,1722721846439,-193.63700276,0.00013699,2]
[334069993,1722721846450,-500.0,0.00013699,2]
[334069995,1722721846459,-500.0,0.00013699,2]
[334069997,1722721846469,-500.0,0.00013699,2]
[334069998,1722721846479,-500.0,0.00013699,2]
[334069999,1722721846488,-500.0,0.00013699,2]
[334070000,1722721846498,-500.0,0.00013699,2]
[334070001,1722721846507,-500.0,0.00013699,2]
[334070002,1722721846517,-500.0,0.00013699,2]
[334070003,1722721846528,-500.0,0.00013699,2]
[334070004,1722721846538,-500.0,0.00013699,2]
[334070005,1722721846547,-500.0,0.00013699,2]
[334070006,1722721846556,-500.0,0.00013699,2]
[334070007,1722721846566,-500.0,0.00013699,2]
[334070008,1722721846576,-500.0,0.00013699,2]
[334070009,1722721846586,-504.53208821,0.00013699,2]
[334070010,1722721846595,-500.0,0.00013699,2]
[334070011,1722721846605,-500.0,0.00013699,2]
[334070012,1722721846614,-500.0,0.00013699,2]
[334070013,1722721846624,-500.0,0.00013699,2]
[334070014,1722721846634,-499.99999999,0.00013699,2]
[334070015,1722721846644,-239.91908528,0.000137,2]
[334070016,1722721846656,-21.23110115,0.000137,2]
[334070017,1722721846666,-1982.746146,0.00013962,2]
[334070018,1722721846678,-1408.49997,0.00013962,2]
[334070019,1722721846834,-440.50656032,0.00013698,2]
[334070022,1722722195410,-694.06857466,9.999e-05,2]
[334070023,1722722219258,-1003.88406402,9.999e-05,2]
[334070024,1722722237879,-259.14049206,9.999e-05,2]
[334070025,1722722296673,-244.82593148,9.999e-05,2]
[334070026,1722722298429,-694.06857466,9.999e-05,2]
[334070028,1722722334372,-160.12324259,9.999e-05,2]
[334070029,1722722358369,-1003.88406402,9.999e-05,2]
[334070030,1722722382766,-154.73853499,9.999e-05,2]
[334070031,1722722413245,-181.99252628,9.999e-05,2]
[334070032,1722722417644,-400.1724778,9.999e-05,2]
[334070033,1722722461119,-181.99252628,9.999e-05,2]
[334070034,1722722461143,-341.03107107,9.999e-05,2]
[334070035,1722722462577,-181.99252628,9.999e-05,2]
[334070036,1722722743136,-523.02359735,9.999e-05,2]
[334070037,1722722743158,-300.0,0.00011237,2]
[334070038,1722722743180,-300.0,0.00011237,2]
[334070039,1722722743202,-207.03061303,0.00011238,2]
[334070040,1722722836099,-300.0,0.00011237,2]
[334070041,1722722836126,-21848.11869347,0.00011238,2]
[334070042,1722722848113,-610.26389366,0.00011238,2]
[334070043,1722722943835,1889.37,0.00018,31]
[334070044,1722722943882,1889.37,0.00018,31]
[334070045,1722722943942,1889.37,0.00018,31]
[334070046,1722722944005,1889.37,0.00018,31]
[334070047,1722722944068,1889.37,0.00018,31]
[334070048,1722722944134,1889.37,0.00018,31]
[334070049,1722722944189,1889.37,0.00018,31]
[334070050,1722722944240,1559.61,0.00018,31]
[334070058,1722723033915,-523.02359735,9.999e-05,2]
[334070059,1722723033930,-155.2138899,9.999e-05,2]
[334070060,1722723033943,-1786.47985685,0.00011238,2]
[334070071,1722723039162,-448.10694299,0.00011238,2]
[334070072,1722723039173,-337.1532414,0.00011417,2]
[334070074,1722723039186,-189.1864485,0.00011524,2]
[334070076,1722723039198,-250.0,0.0001173,2]
[334070078,1722723039208,-250.0,0.00011763,2]
[334070080,1722723039217,-250.0,0.00011795,2]
[334070082,1722723039227,-250.0,0.00011827,2]
[334070085,1722723039236,-250.0,0.00011859,2]
[334070087,1722723039246,-250.0,0.00011891,2]
[334070089,1722723039255,-250.0,0.00011923,2]
[334070091,1722723039265,-250.0,0.00011956,2]
[334070093,1722723039275,-250.0,0.00011988,2]
[334070094,1722723039284,-250.0,0.0001202,2]
[334070096,1722723039294,-250.0,0.00012052,2]
[334070098,1722723039303,-250.0,0.00012084,2]
[334070100,1722723039312,-250.0,0.00012116,2]
[334070102,1722723039321,-250.0,0.00012149,2]
[334070103,1722723039331,-250.0,0.00012181,2]
[334070105,1722723039340,-250.0,0.00012213,2]
[334070107,1722723039349,-250.0,0.00012245,2]
[334070109,1722723039358,-250.0,0.00012277,2]
[334070110,1722723039367,-250.0,0.00012309,2]
[334070111,1722723039376,-250.0,0.00012342,2]
[334070112,1722723039386,-203.0,0.00012482,2]
[334070113,1722723039395,-154.72922386,0.00013,2]
[334070114,1722723039405,-6354.68917356,0.00013521,2]
[334070115,1722723039414,-354.1491913,0.00013591,2]
[334070116,1722723039424,-737.88968903,0.00013598,2]
[334070117,1722723039438,-3180.2537786,0.00013598,2]
[334070118,1722723039447,-151.0,0.0001369,2]
[334070119,1722723039458,-601.93,0.00013697,2]
[334070120,1722723039468,-734.76335704,0.00013698,2]
[334070121,1722723039478,-501.15674411,0.00013698,2]
[334070122,1722723039487,-559.81704241,0.00013698,2]
[334070123,1722723039499,-204.06694146,0.00013698,2]
[334070124,1722723039510,-500.0,0.00013698,2]
[334070125,1722723039519,-500.0,0.00013698,2]
[334070126,1722723039529,-500.0,0.00013698,2]
[334070127,1722723039539,-500.0,0.00013698,2]
[334070128,1722723039550,-501.5405468,0.00013698,2]
[334070129,1722723039560,-617.61400329,0.00013698,2]
[334070130,1722723039569,-500.0,0.00013698,2]
[334070131,1722723039579,-500.0,0.00013698,2]
[334070132,1722723039588,-204.8390998,0.00013698,2]
[334070133,1722723039597,-263.96081115,0.00013698,2]
[334070134,1722723039606,-500.0,0.00013698,2]
[334070135,1722723039616,-500.0,0.00013698,2]
[334070136,1722723039626,-500.0,0.00013698,2]
[334070137,1722723039635,-500.0,0.00013698,2]
[334070138,1722723039644,-604.08,0.00013698,2]
[334070139,1722723039654,-500.0,0.00013698,2]
[334070140,1722723039665,-500.0,0.00013698,2]
[334070141,1722723039675,-500.0,0.00013698,2]
[334070142,1722723039686,-555.67,0.00013698,2]
[334070143,1722723039697,-500.0,0.00013698,2]
[334070144,1722723039706,-213.99283193,0.00013698,2]
[334070145,1722723039718,-286.00716807,0.00013698,2]
[334070146,1722723039727,-500.0,0.00013698,2]
[334070147,1722723039737,-500.0,0.00013698,2]
[334070148,1722723039746,-500.0,0.00013698,2]
[334070149,1722723039756,-396.60852126,0.00013698,2]
[334070150,1722723039765,-500.0,0.00013698,2]
[334070151,1722723039774,-500.0,0.00013698,2]
[334070152,1722723039783,-611.53442492,0.00013698,2]
[334070153,1722723039793,-500.0,0.00013698,2]
[334070154,1722723039802,-500.0,0.00013698,2]
[334070155,1722723039811,-500.0,0.00013698,2]
[334070156,1722723039821,-500.0,0.00013698,2]
[334070157,1722723039830,-500.0,0.00013698,2]
[334070158,1722723039839,-500.0,0.00013698,2]
[334070159,1722723039848,-500.0,0.00013698,2]
[334070160,1722723039858,-572.34,0.00013698,2]
[334070161,1722723039868,-500.0,0.00013698,2]
[334070162,1722723039877,-500.0,0.00013698,2]
[334070163,1722723039887,-500.0,0.00013698,2]
[334070164,1722723039896,-500.0,0.00013698,2]
[334070165,1722723039905,-500.0,0.00013698,2]
[334070166,1722723039915,-500.0,0.00013698,2]
[334070167,1722723039927,-500.0,0.00013698,2]
[334070168,1722723039936,-500.0,0.00013698,2]
[334070169,1722723039947,-182.32442779,0.00013698,2]
[334070170,1722723039956,-500.0,0.00013698,2]
[334070171,1722723039966,-500.0,0.00013698,2]
[334070172,1722723039977,-500.0,0.00013698,2]
[334070173,1722723039987,-500.0,0.00013698,2]
[334070174,1722723039996,-241.18881109,0.00013698,2]
[334070175,1722723040007,-500.0,0.00013698,2]
[334070176,1722723040018,-500.0,0.00013698,2]
[334070177,1722723040027,-500.0,0.00013698,2]
[334070178,1722723040038,-500.0,0.00013698,2]
[334070179,1722723040049,-500.0,0.00013698,2]
[334070180,1722723040060,-500.0,0.00013698,2]
[334070181,1722723040071,-500.0,0.00013698,2]
[334070182,1722723040082,-678.27,0.00013698,2]
[334070183,1722723040097,-500.0,0.00013698,2]
[334070184,1722723040109,-407.81404815,0.00013698,2]
[334070185,1722723040119,-539.21617799,0.00013698,2]
[334070186,1722723040131,-645.77,0.00013698,2]
[334070188,1722723040141,-500.0,0.00013698,2]
[334070189,1722723040151,-500.0,0.00013698,2]
[334070190,1722723040162,-681.15,0.00013698,2]
[334070191,1722723040175,-727.74,0.00013698,2]
[334070192,1722723040187,-549.4,0.00013698,2]
[334070193,1722723040198,-2196.77,0.00013698,2]
[334070194,1722723040208,-500.0,0.00013698,2]
[334070195,1722723040219,-601.93,0.00013698,2]
[334070196,1722723040229,-500.0,0.00013698,2]
[334070197,1722723040240,-500.0,0.00013698,2]
[334070198,1722723040251,-1016.82,0.00013698,2]
[334070199,1722723040263,-1980.23,0.00013698,2]
[334070200,1722723040272,-500.0,0.00013698,2]
[334070201,1722723040282,-500.0,0.00013698,2]
[334070203,1722723040291,-505.97119188,0.00013698,2]
[334070205,1722723040300,-500.0,0.00013698,2]
[334070206,1722723040310,-500.0,0.00013698,2]
[334070208,1722723040319,-122.44148085,0.00013698,2]
[334070213,1722723040822,-167.081458,0.00012986,2]
[334070214,1722723040833,-410.22851915,0.00013698,2]
[334070215,1722723040843,-655.88,0.00013698,2]
[334070216,1722723040853,-500.0,0.00013698,2]
[334070217,1722723040863,-500.0,0.00013698,2]
[334070218,1722723040873,-500.0,0.00013698,2]
[334070219,1722723040883,-500.0,0.00013698,2]
[334070220,1722723040893,-500.0,0.00013698,2]
[334070221,1722723040904,-500.0,0.00013698,2]
[334070222,1722723040915,-1866.7,0.00013698,2]
[334070223,1722723040927,-500.0,0.00013698,2]
[334070224,1722723040937,-500.0,0.00013698,2]
[334070225,1722723040946,-500.0,0.00013698,2]
[334070226,1722723040956,-500.0,0.00013698,2]
[334070227,1722723040966,-1244.43,0.00013698,2]
[334070228,1722723040976,-500.0,0.00013698,2]
[334070229,1722723040986,-500.0,0.00013698,2]
[334070230,1722723040996,-500.0,0.00013698,2]
[334070231,1722723041006,-500.0,0.00013698,2]
[334070232,1722723041016,-180.181614,0.00013699,2]
[334070233,1722723041027,-3000.0,0.00013699,2]
[334070234,1722723041036,-952.03382543,0.00013871,2]
[334070235,1722723041046,-18748.6194095,0.00013952,2]
[334070236,1722723041056,-18748.6194095,0.00013962,2]
[334070237,1722723041065,-601.93,0.00013971,2]
[334070238,1722723041075,-500.0,0.00013972,2]
[334070239,1722723041084,-500.0,0.00013972,2]
[334070240,1722723041097,-500.0,0.00013972,2]
[334070241,1722723041109,-555.67,0.00013972,2]
[334070242,1722723041118,-500.0,0.00013972,2]
[334070243,1722723041130,-500.0,0.00013972,2]
[334070244,1722723041142,-500.0,0.00013972,2]
[334070245,1722723041153,-500.0,0.00013972,2]
[334070246,1722723041163,-500.0,0.00013972,2]
[334070247,1722723041175,-648.52320949,0.00013972,2]
[334070248,1722723041185,-500.0,0.00013972,2]
[334070249,1722723041194,-355.23726748,0.00013972,2]
[334070250,1722723041203,-100.18942545,0.00013972,2]
[334070286,1722723044022,-399.81057455,0.00013972,2]
[334070287,1722723044033,-500.0,0.00013972,2]
[334070288,1722723044043,-233.44551408,0.00013972,2]
[334070347,1722723926517,2085.0,0.00027,120]
[334070348,1722723973293,-412.91003871,0.0001,2]
[334070349,1722724028108,-342.91158356,0.0001225,2]
[334070350,1722724029108,-365.95171932,0.0001225,2]
[334070457,1722724241117,-1437.39280895,0.0001225,2]
[334070459,1722724241129,-22753.74388817,0.0001225,2]
[334070461,1722724241139,-2023.51194993,0.000125,2]
[334070462,1722724241149,-250.0,0.00012647,2]
[334070463,1722724241159,-250.0,0.00012681,2]
[334070464,1722724241169,-250.0,0.00012716,2]
[334070465,1722724241179,-250.0,0.00012751,2]
[334070466,1722724241189,-250.0,0.00012785,2]
[334070467,1722724241199,-250.0,0.0001282,2]